lending/lending_fUSD_20241005
["ID","MTS","AMOUNT","RATE_DAILY","PERIOD"]
[339870362,1728096645567,-257.52194784,0.00037964,30]
[339870363,1728096645578,-500.0,0.00037964,30]
[339870364,1728096645588,-500.0,0.00037964,30]
[339870365,1728096645599,-500.0,0.00037964,30]
[339870366,1728096645609,-500.0,0.00037964,30]
[339870367,1728096645620,-933.86,0.00037964,30]
[339870368,1728096645630,-547.95079091,0.00037964,30]
[339870369,1728096645641,-500.0,0.00037964,30]
[339870370,1728096645651,-500.0,0.00037964,2]
[339870371,1728096645662,-500.0,0.00037964,30]
[339870372,1728096645673,-500.0,0.00037964,30]
[339870373,1728096645685,-500.0,0.00037964,30]
[339870374,1728096645696,-500.0,0.00037964,30]
[339870375,1728096645706,-500.0,0.00037964,30]
[339870376,1728096645718,-500.0,0.00037964,30]
[339870377,1728096645728,-501.95087831,0.00037965,30]
[339870378,1728096645739,-623.45444898,0.00037965,30]
[339870379,1728096645749,-500.0,0.00037965,30]
[339870380,1728096645759,-500.0,0.00037965,30]
[339870381,1728096645769,-500.0,0.00037965,30]
[339870382,1728096645780,-500.0,0.00037965,30]
[339870383,1728096645790,-500.0,0.00037965,30]
[339870384,1728096645800,-500.0,0.00037965,30]
[339870385,1728096645814,-500.0,0.00037965,30]
[339870386,1728096645825,-500.0,0.00037965,30]
[339870387,1728096645835,-418.39133195,0.00037965,30]
[339870388,1728096645845,-587.63,0.00037965,30]
[339870389,1728096645854,-808.03,0.00037965,30]
[339870390,1728096645865,-500.0,0.00037965,30]
[339870391,1728096645875,-623.29,0.00037965,30]
[339870392,1728096645885,-500.0,0.00037965,30]
[339870393,1728096645895,-500.0,0.00037965,30]
[339870394,1728096645906,-500.0,0.00037965,30]
[339870395,1728096645916,-500.0,0.00037965,30]
[339870396,1728096645926,-961.62,0.00037965,30]
[339870397,1728096645937,-500.0,0.00037965,30]
[339870398,1728096645947,-500.0,0.00037965,30]
[339870399,1728096645957,-500.0,0.00037965,30]
[339870400,1728096645967,-500.0,0.00037965,30]
[339870401,1728096645977,-500.0,0.00037965,30]
[339870402,1728096645987,-500.0,0.00037965,30]
[339870403,1728096645997,-500.0,0.00037965,30]
[339870404,1728096646007,-500.0,0.00037965,30]
[339870405,1728096646018,-500.0,0.00037965,30]
[339870406,1728096646028,-898.86,0.00037965,30]
[339870407,1728096646038,-500.0,0.00037965,30]
[339870408,1728096646048,-561.07,0.00037965,30]
[339870410,1728096646059,-500.0,0.00037965,30]
[339870412,1728096646069,-647.57,0.00037965,30]
[339870413,1728096646081,-500.0,0.00037965,30]
[339870416,1728096646091,-679.43,0.00037965,30]
[339870418,1728096646102,-500.0,0.00037965,30]
[339870420,1728096646112,-500.0,0.00037965,30]
[339870422,1728096646122,-500.0,0.00037965,30]
[339870424,1728096646132,-500.0,0.00037965,30]
[339870426,1728096646143,-500.0,0.00037965,30]
[339870428,1728096646153,-500.0,0.00037965,30]
[339870430,1728096646164,-500.0,0.00037965,30]
[339870433,1728096646174,-500.0,0.00037965,30]
[339870434,1728096646183,-524.52,0.00037965,30]
[339870436,1728096646193,-500.0,0.00037965,30]
[339870453,1728096646352,-500.0,0.00037965,30]
[339870455,1728096646366,-500.0,0.00037965,30]
[339870457,1728096646376,-500.0,0.00037965,30]
[339870459,1728096646386,-625.97,0.00037965,30]
[339870461,1728096646395,-500.0,0.00037965,30]
[339870463,1728096646404,-500.0,0.00037965,30]
[339870465,1728096646414,-500.0,0.00037965,30]
[339870467,1728096646423,-500.0,0.00037965,30]
[339870469,1728096646432,-500.0,0.00037965,30]
[339870471,1728096646441,-541.71,0.00037965,30]
[339870473,1728096646450,-500.0,0.00037965,30]
[339870475,1728096646459,-500.0,0.00037965,30]
[339870477,1728096646467,-586.97,0.00037965,30]
[339870479,1728096646477,-500.0,0.00037965,30]
[339870481,1728096646486,-826.94,0.00037965,30]
[339870483,1728096646495,-500.0,0.00037965,30]
[339870485,1728096646505,-595.32,0.00037965,30]
[339870487,1728096646513,-500.0,0.00037965,2]
[339870489,1728096646523,-500.0,0.00037965,30]
[339870491,1728096646531,-500.0,0.00037965,30]
[339870493,1728096646541,-723.7,0.00037965,30]
[339870495,1728096646550,-500.0,0.00037965,30]
[339870497,1728096646559,-745.84,0.00037965,30]
[339870499,1728096646568,-500.0,0.00037965,30]
[339870500,1728096646577,-500.0,0.00037965,30]
[339870502,1728096646586,-500.0,0.00037965,30]
[339870504,1728096646596,-500.0,0.00037965,30]
[339870506,1728096646606,-500.0,0.00037965,30]
[339870508,1728096646616,-500.0,0.00037965,30]
[339870510,1728096646626,-500.0,0.00037965,30]
[339870512,1728096646635,-500.0,0.00037965,30]
[339870514,1728096646645,-500.0,0.00037965,30]
[339870516,1728096646654,-500.0,0.00037965,30]
[339870518,1728096646663,-500.0,0.00037965,30]
[339870520,1728096646673,-509.13113907,0.00037965,30]
[339870522,1728096646682,-500.0,0.00037965,30]
[339870524,1728096646693,-500.0,0.00037965,30]
[339870527,1728096646704,-612.42,0.00037983,30]
[339870529,1728096646713,-505.8,0.00037983,30]
[339870531,1728096646722,-500.0,0.00037992,30]
[339870533,1728096646732,-500.0,0.00037992,30]
[339870535,1728096646741,-500.0,0.00037992,30]
[339870537,1728096646751,-511.69,0.00037992,30]
[339870539,1728096646760,-500.0,0.00037993,30]
[339870541,1728096646769,-499.79239999,0.00038101,30]
[339870542,1728096646778,-243.33364343,0.00038101,30]
[339870544,1728096646787,-5800.0,0.00038148,2]
[339870547,1728096646799,-5800.0,0.00038156,2]
[339870549,1728096646808,-842.08350976,0.00038229,6]
[339870551,1728096646817,-189.66760352,0.00038238,30]
[339870553,1728096646827,-500.0,0.00038238,30]
[339870555,1728096646835,-500.0,0.00038238,30]
[339870557,1728096646844,-500.0,0.00038238,30]
[339870559,1728096646853,-500.0,0.00038238,30]
[339870560,1728096646862,-1000.0,0.00038238,30]
[339870562,1728096646872,-500.0,0.00038238,30]
[339870564,1728096646881,-500.0,0.00038238,30]
[339870566,1728096646890,-500.0,0.00038238,30]
[339870568,1728096646899,-627.24,0.00038238,30]
[339870570,1728096646908,-280.84996391,0.00038238,30]
[339870572,1728096646917,-500.0,0.00038238,30]
[339870574,1728096646927,-500.0,0.00038238,30]
[339870576,1728096646936,-1273.88,0.00038238,30]
[339870578,1728096646946,-626.12889483,0.00038238,30]
[339870580,1728096646955,-500.0,0.00038238,30]
[339870582,1728096646964,-500.0,0.00038238,30]
[339870584,1728096646974,-500.0,0.00038238,30]
[339870586,1728096646983,-500.0,0.00038238,21]
[339870588,1728096646992,-500.0,0.00038238,30]
[339870590,1728096647001,-500.0,0.00038238,30]
[339870592,1728096647010,-500.0,0.00038238,30]
[339870594,1728096647019,-500.0,0.00038238,30]
[339870597,1728096647030,-500.0,0.00038238,30]
[339870598,1728096647039,-500.0,0.00038238,30]
[339870600,1728096647048,-500.0,0.00038238,30]
[339870602,1728096647058,-500.0,0.00038238,30]
[339870604,1728096647067,-374.98638742,0.00038238,30]
[339870606,1728096647076,-500.0,0.00038238,30]
[339870608,1728096647087,-500.0,0.00038238,30]
[339870610,1728096647096,-500.0,0.00038238,30]
[339870612,1728096647105,-500.0,0.00038238,30]
[339870614,1728096647113,-500.0,0.00038238,30]
[339870615,1728096647123,-500.0,0.00038238,30]
[339870617,1728096647132,-500.0,0.00038238,30]
[339870619,1728096647141,-294.13,0.00038238,30]
[339870621,1728096647150,-249.83,0.00038238,30]
[339870623,1728096647161,-500.0,0.00038238,30]
[339870625,1728096647169,-503.59960162,0.00038238,30]
[339870627,1728096647178,-933.86,0.00038238,30]
[339870629,1728096647191,-615.0478919,0.00038238,30]
[339870630,1728096647200,-500.0,0.00038238,2]
[339870632,1728096647209,-500.0,0.00038238,30]
[339870634,1728096647218,-500.0,0.00038238,30]
[339870636,1728096647227,-500.0,0.00038238,30]
[339870638,1728096647236,-500.0,0.00038238,30]
[339870640,1728096647245,-500.0,0.00038238,30]
[339870642,1728096647255,-500.0,0.00038238,30]
[339870644,1728096647265,-500.0,0.00038239,30]
[339870646,1728096647274,-500.0,0.00038239,30]
[339870648,1728096647283,-500.0,0.00038239,30]
[339870650,1728096647292,-500.0,0.00038239,30]
[339870652,1728096647301,-500.0,0.00038239,30]
[339870654,1728096647310,-500.0,0.00038239,30]
[339870656,1728096647320,-500.0,0.00038239,30]
[339870658,1728096647329,-500.0,0.00038239,30]
[339870660,1728096647338,-587.63,0.00038239,30]
[339870662,1728096647349,-808.03,0.00038239,30]
[339870664,1728096647358,-500.0,0.00038239,30]
[339870666,1728096647367,-623.29,0.00038239,30]
[339870668,1728096647376,-500.0,0.00038239,30]
[339870670,1728096647385,-500.0,0.00038239,30]
[339870672,1728096647396,-500.0,0.00038239,30]
[339870674,1728096647405,-500.0,0.00038239,30]
[339870676,1728096647415,-961.62,0.00038239,30]
[339870678,1728096647424,-500.0,0.00038239,30]
[339870680,1728096647433,-500.0,0.00038239,30]
[339870682,1728096647443,-500.0,0.00038239,30]
[339870684,1728096647453,-500.0,0.00038239,30]
[339870686,1728096647462,-500.0,0.00038239,30]
[339870688,1728096647471,-500.0,0.00038239,30]
[339870690,1728096647480,-500.0,0.00038239,30]
[339870692,1728096647491,-500.0,0.00038239,30]
[339870694,1728096647500,-898.86,0.00038239,30]
[339870696,1728096647510,-500.0,0.00038239,30]
[339870698,1728096647519,-500.0,0.00038239,30]
[339870700,1728096647528,-561.07,0.00038239,30]
[339870702,1728096647538,-500.0,0.00038239,30]
[339870704,1728096647547,-647.57,0.00038239,30]
[339870706,1728096647557,-500.0,0.00038239,30]
[339870708,1728096647566,-679.43,0.00038239,30]
[339870710,1728096647576,-500.0,0.00038239,30]
[339870712,1728096647585,-500.0,0.00038239,30]
[339870714,1728096647595,-500.0,0.00038239,30]
[339870716,1728096647604,-500.0,0.00038239,30]
[339870718,1728096647614,-500.0,0.00038239,30]
[339870720,1728096647623,-500.0,0.00038239,30]
[339870722,1728096647632,-500.0,0.00038239,30]
[339870724,1728096647641,-500.0,0.00038239,30]
[339870726,1728096647650,-524.52,0.00038239,30]
[339870728,1728096647659,-500.0,0.00038239,30]
[339870730,1728096647668,-500.0,0.00038239,30]
[339870732,1728096647677,-500.0,0.00038239,30]
[339870734,1728096647686,-500.0,0.00038239,30]
[339870736,1728096647696,-625.97,0.00038239,30]
[339870738,1728096647705,-500.0,0.00038239,30]
[339870739,1728096647713,-500.0,0.00038239,30]
[339870741,1728096647723,-500.0,0.00038239,30]
[339870743,1728096647732,-500.0,0.00038239,30]
[339870745,1728096647741,-500.0,0.00038239,30]
[339870747,1728096647750,-541.71,0.00038239,30]
[339870749,1728096647760,-500.0,0.00038239,30]
[339870751,1728096647769,-500.0,0.00038239,30]
[339870753,1728096647778,-586.97,0.00038239,30]
[339870755,1728096647786,-500.0,0.00038239,30]
[339870756,1728096647795,-826.94,0.00038239,30]
[339870757,1728096647804,-500.0,0.00038239,30]
[339870758,1728096647813,-595.32,0.00038239,30]
[339870759,1728096647822,-500.0,0.00038239,2]
[339870760,1728096647830,-500.0,0.00038239,30]
[339870761,1728096647839,-500.0,0.00038239,30]
[339870762,1728096647848,-723.7,0.00038239,30]
[339870763,1728096647857,-500.0,0.00038239,30]
[339870764,1728096647866,-745.84,0.00038239,30]
[339870765,1728096647875,-500.0,0.00038239,30]
[339870766,1728096647884,-500.0,0.00038239,30]
[339870767,1728096647893,-500.0,0.00038239,30]
[339870768,1728096647902,-500.0,0.00038239,30]
[339870770,1728096647911,-539.34723806,0.00038239,30]
[339870772,1728096647920,-500.0,0.00038239,30]
[339870774,1728096647929,-500.0,0.00038239,30]
[339870776,1728096647938,-500.0,0.00038239,30]
[339870778,1728096647947,-500.0,0.00038239,30]
[339870780,1728096647956,-500.0,0.00038239,30]
[339870782,1728096647965,-500.0,0.00038239,30]
[339870784,1728096647974,-500.0,0.00038239,30]
[339870786,1728096647983,-500.0,0.00038239,30]
[339870788,1728096647993,-505.8,0.00038257,30]
[339870790,1728096648003,-500.0,0.00038266,30]
[339870792,1728096648012,-500.0,0.00038266,30]
[339870794,1728096648021,-500.0,0.00038266,30]
[339870796,1728096648030,-511.69,0.00038266,30]
[339870798,1728096648039,-500.0,0.00038267,30]
[339870800,1728096648048,-4787.60419937,0.00038292,15]
[339870802,1728096648057,-180.0,0.00038374,120]
[339870804,1728096648066,-500.0,0.0003844,120]
[339870806,1728096648075,-500.0,0.0003844,120]
[339870807,1728096648084,-1049.99804894,0.00038462,5]
[339870808,1728096648093,-1113.01439597,0.00038462,5]
[339870809,1728096648103,-842.08350976,0.00038503,6]
[339870810,1728096648112,-500.0,0.00038512,120]
[339870811,1728096648121,-183.10486491,0.00038512,120]
[339870812,1728096648136,-500.0,0.00038512,120]
[339870813,1728096648145,-500.0,0.00038512,120]
[339870814,1728096648155,-1000.0,0.00038512,120]
[339870815,1728096648164,-500.0,0.00038512,120]
[339870816,1728096648174,-500.0,0.00038512,120]
[339870817,1728096648183,-500.0,0.00038512,120]
[339870818,1728096648192,-627.24,0.00038512,120]
[339870819,1728096648202,-265.6,0.00038512,120]
[339870820,1728096648211,-500.0,0.00038512,120]
[339870821,1728096648220,-1273.88,0.00038512,120]
[339870822,1728096648229,-500.0,0.00038512,120]
[339870823,1728096648238,-356.24348705,0.00038512,120]
[339870824,1728096648248,-206.68251933,0.00038512,120]
[339870825,1728096648257,-500.0,0.00038512,21]
[339870826,1728096648266,-500.0,0.00038512,120]
[339870827,1728096648275,-496.84294571,0.00038512,120]
[339870828,1728096648284,-500.0,0.00038512,120]
[339870829,1728096648294,-500.0,0.00038512,120]
[339870830,1728096648303,-500.0,0.00038512,120]
[339870831,1728096648312,-500.0,0.00038512,120]
[339870832,1728096648321,-458.8,0.00038512,120]
[339870833,1728096648330,-500.0,0.00038512,120]
[339870834,1728096648339,-500.0,0.00038512,120]
[339870835,1728096648349,-436.1619943,0.00038512,120]
[339870836,1728096648358,-155.42,0.00038512,120]
[339870837,1728096648367,-500.0,0.00038512,120]
[339870838,1728096648377,-313.24475423,0.00038512,120]
[339870839,1728096648386,-623.38,0.00038512,120]
[339870840,1728096648395,-500.0,0.00038512,120]
[339870841,1728096648404,-500.0,0.00038512,120]
[339870842,1728096648413,-933.86,0.00038512,120]
[339870843,1728096648422,-500.0,0.00038512,2]
[339870844,1728096648432,-500.0,0.00038512,120]
[339870845,1728096648441,-500.0,0.00038512,120]
[339870846,1728096648450,-500.0,0.00038512,120]
[339870847,1728096648460,-500.0,0.00038512,120]
[339870848,1728096648469,-500.0,0.00038513,120]
[339870849,1728096648478,-500.0,0.00038513,120]
[339870850,1728096648487,-503.28172459,0.00038513,120]
[339870851,1728096648497,-500.0,0.00038513,120]
[339870852,1728096648506,-503.32394759,0.00038513,120]
[339870853,1728096648515,-500.0,0.00038513,120]
[339870854,1728096648524,-500.0,0.00038513,120]
[339870855,1728096648533,-500.0,0.00038513,120]
[339870856,1728096648543,-505.21265848,0.00038513,120]
[339870857,1728096648552,-587.63,0.00038513,120]
[339870858,1728096648561,-808.03,0.00038513,120]
[339870859,1728096648571,-504.1170589,0.00038513,120]
[339870860,1728096648580,-623.29,0.00038513,120]
[339870861,1728096648589,-500.0,0.00038513,120]
[339870862,1728096648598,-500.0,0.00038513,120]
[339870863,1728096648607,-500.0,0.00038513,120]
[339870864,1728096648617,-534.32370571,0.00038513,120]
[339870865,1728096648627,-961.62,0.00038513,120]
[339870866,1728096648637,-500.0,0.00038513,120]
[339870867,1728096648648,-500.0,0.00038513,120]
[339870868,1728096648657,-500.0,0.00038513,120]
[339870869,1728096648666,-500.0,0.00038513,120]
[339870870,1728096648676,-500.0,0.00038513,120]
[339870871,1728096648685,-500.0,0.00038513,120]
[339870872,1728096648696,-500.0,0.00038513,120]
[339870873,1728096648705,-898.86,0.00038513,120]
[339870874,1728096648714,-501.03812508,0.00038513,120]
[339870875,1728096648723,-503.8629709,0.00038513,120]
[339870876,1728096648733,-561.07,0.00038513,120]
[339870877,1728096648742,-500.0,0.00038513,120]
[339870878,1728096648751,-647.57,0.00038513,120]
[339870879,1728096648760,-500.0,0.00038513,120]
[339870880,1728096648769,-679.43,0.00038513,120]
[339870881,1728096648778,-501.51973241,0.00038513,90]
[339870882,1728096648787,-503.21466114,0.00038513,120]
[339870883,1728096648796,-502.11500687,0.00038513,120]
[339870884,1728096648805,-500.0,0.00038513,120]
[339870885,1728096648814,-500.0,0.00038513,120]
[339870886,1728096648824,-503.73361915,0.00038513,120]
[339870887,1728096648833,-500.0,0.00038513,120]
[339870888,1728096648843,-585.51052801,0.00038513,120]
[339870889,1728096648852,-524.52,0.00038513,120]
[339870890,1728096648861,-500.0,0.00038513,120]
[339870891,1728096648871,-502.4763581,0.00038513,120]
[339870892,1728096648880,-500.0,0.00038513,120]
[339870893,1728096648889,-500.0,0.00038513,120]
[339870894,1728096648898,-625.97,0.00038513,120]
[339870895,1728096648907,-515.8389288,0.00038513,120]
[339870896,1728096648916,-500.0,0.00038513,120]
[339870897,1728096648925,-504.03799499,0.00038513,120]
[339870898,1728096648934,-499.49189899,0.00038513,120]
[339870899,1728096648943,-500.0,0.00038513,120]
[339870900,1728096648952,-541.71,0.00038513,120]
[339870901,1728096648961,-500.0,0.00038513,120]
[339870902,1728096648971,-500.0,0.00038513,120]
[339870903,1728096648981,-586.97,0.00038513,120]
[339870904,1728096648990,-503.76211608,0.00038513,120]
[339870905,1728096648999,-826.94,0.00038513,120]
[339870906,1728096649008,-503.31314627,0.00038513,120]
[339870907,1728096649017,-595.32,0.00038513,120]
[339870908,1728096649027,-501.51498926,0.00038513,2]
[339870909,1728096649036,-501.18717688,0.00038513,120]
[339870910,1728096649045,-500.0,0.00038513,120]
[339870911,1728096649054,-723.7,0.00038513,120]
[339870912,1728096649063,-500.0,0.00038513,120]
[339870913,1728096649072,-745.84,0.00038513,120]
[339870914,1728096649085,-500.0,0.00038513,120]
[339870915,1728096649094,-503.18058028,0.00038513,120]
[339870916,1728096649104,-500.0,0.00038513,120]
[339870917,1728096649113,-500.0,0.00038513,120]
[339870918,1728096649123,-500.0,0.00038513,120]
[339870919,1728096649132,-500.0,0.00038513,120]
[339870920,1728096649141,-500.0,0.00038513,120]
[339870921,1728096649150,-500.0,0.00038513,120]
[339870922,1728096649159,-500.0,0.00038513,120]
[339870923,1728096649169,-500.0,0.00038513,120]
[339870924,1728096649179,-504.23488075,0.00038513,120]
[339870925,1728096649189,-500.0,0.00038513,120]
[339870926,1728096649198,-842.08350976,0.0003853,6]
[339870927,1728096649208,-505.8,0.00038531,120]
[339870928,1728096649217,-498.70434432,0.0003854,120]
[339870929,1728096649226,-500.0,0.0003854,120]
[339870930,1728096649235,-500.0,0.0003854,120]
[339870931,1728096649246,-511.69,0.0003854,120]
[339870932,1728096649255,-302.36556153,0.00038541,120]
[339870933,1728096649266,-202.0,0.0003868,30]
[339870934,1728096649275,-215.0,0.0003868,30]
[339870935,1728096649285,-205.0,0.0003868,30]
[339870936,1728096649294,-842.08350976,0.00038777,6]
[339870937,1728096649304,-500.0,0.00038786,120]
[339870938,1728096649313,-500.0,0.00038786,120]
[339870939,1728096649322,-500.0,0.00038786,120]
[339870940,1728096649332,-1000.0,0.00038786,120]
[339870941,1728096649341,-155.69195275,0.00038786,120]
[339870942,1728096649350,-270.0,0.00038786,120]
[339870943,1728096649360,-330.25,0.00038786,120]
[339870944,1728096649369,-627.24,0.00038786,120]
[339870945,1728096649379,-500.0,0.00038786,120]
[339870946,1728096649388,-1273.88,0.00038786,120]
[339870947,1728096649398,-500.0,0.00038786,120]
[339870948,1728096649407,-500.0,0.00038786,21]
[339870949,1728096649417,-561.25,0.00038786,120]
[339870950,1728096649427,-500.0,0.00038786,120]
[339870951,1728096649436,-499.96,0.00038786,120]
[339870952,1728096649446,-500.0,0.00038786,120]
[339870953,1728096649455,-325.82338181,0.00038786,120]
[339870954,1728096649571,-244.95,0.00038786,120]
[339870955,1728096649600,-500.0,0.00038786,120]
[339870956,1728096649611,-500.0,0.00038786,120]
[339870957,1728096649621,-260.61624108,0.00038786,120]
[339870958,1728096649631,-500.0,0.00038786,120]
[339870959,1728096649641,-933.86,0.00038786,120]
[339870960,1728096649651,-500.0,0.00038786,2]
[339870961,1728096649660,-500.0,0.00038786,120]
[339870962,1728096649670,-500.0,0.00038786,120]
[339870963,1728096649680,-500.0,0.00038786,120]
[339870964,1728096649690,-463.87043493,0.00038786,120]
[339870965,1728096649699,-500.0,0.00038787,120]
[339870966,1728096649709,-500.0,0.00038787,120]
[339870967,1728096649719,-500.0,0.00038787,120]
[339870968,1728096649728,-500.0,0.00038787,120]
[339870969,1728096649739,-500.0,0.00038787,120]
[339870970,1728096649748,-587.63,0.00038787,120]
[339870971,1728096649758,-808.03,0.00038787,120]
[339870972,1728096649767,-623.29,0.00038787,120]
[339870973,1728096649776,-500.0,0.00038787,120]
[339870974,1728096649786,-500.0,0.00038787,120]
[339870975,1728096649796,-500.0,0.00038787,120]
[339870976,1728096649806,-961.62,0.00038787,120]
[339870977,1728096649816,-500.0,0.00038787,120]
[339870978,1728096649825,-500.0,0.00038787,120]
[339870979,1728096649835,-500.0,0.00038787,120]
[339870980,1728096649844,-500.0,0.00038787,120]
[339870981,1728096649853,-500.0,0.00038787,120]
[339870982,1728096649863,-500.0,0.00038787,120]
[339870983,1728096649873,-500.0,0.00038787,120]
[339870984,1728096649882,-898.86,0.00038787,120]
[339870985,1728096649892,-561.07,0.00038787,120]
[339870986,1728096649901,-500.0,0.00038787,120]
[339870987,1728096649911,-647.57,0.00038787,120]
[339870988,1728096649920,-500.0,0.00038787,120]
[339870989,1728096649930,-679.43,0.00038787,120]
[339870990,1728096649939,-500.0,0.00038787,120]
[339870991,1728096649949,-500.0,0.00038787,120]
[339870992,1728096649958,-454.87318852,0.00038787,120]
[339870993,1728096649967,-524.52,0.00038787,120]
[339870994,1728096649976,-500.0,0.00038787,120]
[339870995,1728096649985,-500.0,0.00038787,120]
[339870996,1728096649994,-500.0,0.00038787,120]
[339870997,1728096650003,-625.97,0.00038787,120]
[339870998,1728096650013,-500.0,0.00038787,120]
[339870999,1728096650023,-500.0,0.00038787,120]
[339871000,1728096650033,-541.71,0.00038787,120]
[339871001,1728096650044,-500.0,0.00038787,120]
[339871002,1728096650053,-500.0,0.00038787,120]
[339871003,1728096650063,-586.97,0.00038787,120]
[339871004,1728096650072,-826.94,0.00038787,120]
[339871005,1728096650081,-595.32,0.00038787,120]
[339871006,1728096650090,-361.98073417,0.00038787,120]
[339871007,1728096650099,-723.7,0.00038787,120]
[339871008,1728096650110,-500.0,0.00038787,120]
[339871009,1728096650121,-745.84,0.00038787,120]
[339871010,1728096650133,-500.0,0.00038787,120]
[339871011,1728096650142,-500.0,0.00038787,120]
[339871012,1728096650153,-500.0,0.00038787,120]
[339871013,1728096650163,-500.0,0.00038787,120]
[339871014,1728096650174,-500.0,0.00038787,120]
[339871015,1728096650186,-500.0,0.00038787,120]
[339871016,1728096650198,-500.0,0.00038787,120]
[339871017,1728096650207,-500.0,0.00038787,120]
[339871018,1728096650217,-500.0,0.00038787,120]
[339871019,1728096650228,-505.8,0.00038805,120]
[339871020,1728096650237,-500.0,0.00038814,120]
[339871021,1728096650248,-500.0,0.00038814,120]
[339871022,1728096650257,-511.69,0.00038814,120]
[339871023,1728096650267,-519.4330601,0.00038842,2]
[339871024,1728096650277,-500.799566,0.00038842,5]
[339871025,1728096650288,-514.79025584,0.00038842,5]
[339871026,1728096650300,-155.361,0.00038857,7]
[339871027,1728096650310,-1810.5480637,0.0003888,90]
[339871028,1728096650320,-406.57929951,0.00038952,2]
[339871029,1728096650330,-268.46778472,0.00038999,120]
[339871030,1728096650339,-434.28765903,0.00039,120]
[339871031,1728096650350,-330.95955925,0.00039,30]
[339871032,1728096650361,-500.0,0.00039016,120]
[339871033,1728096650371,-842.08350976,0.00039051,6]
[339871034,1728096650380,-500.0,0.0003906,120]
[339871035,1728096650390,-500.0,0.0003906,120]
[339871036,1728096650400,-500.0,0.0003906,120]
[339871037,1728096650409,-1000.0,0.0003906,120]
[339871038,1728096650419,-627.24,0.0003906,120]
[339871039,1728096650428,-500.0,0.0003906,120]
[339871040,1728096650437,-1273.88,0.0003906,120]
[339871041,1728096650446,-500.0,0.0003906,120]
[339871042,1728096650456,-500.0,0.0003906,21]
[339871043,1728096650465,-385.43,0.0003906,120]
[339871044,1728096650475,-500.0,0.0003906,120]
[339871045,1728096650484,-192.45,0.0003906,120]
[339871046,1728096650493,-500.0,0.0003906,120]
[339871047,1728096650502,-522.82948513,0.0003906,120]
[339871048,1728096650511,-933.86,0.0003906,120]
[339871049,1728096650521,-500.0,0.0003906,2]
[339871050,1728096650530,-500.0,0.0003906,120]
[339871051,1728096650540,-500.0,0.0003906,120]
[339871052,1728096650549,-500.0,0.0003906,120]
[339871053,1728096650559,-500.0,0.00039061,120]
[339871054,1728096650568,-500.0,0.00039061,120]
[339871055,1728096650578,-500.0,0.00039061,120]
[339871056,1728096650587,-500.0,0.00039061,120]
[339871057,1728096650596,-587.63,0.00039061,120]
[339871058,1728096650605,-808.03,0.00039061,120]
[339871059,1728096650615,-623.29,0.00039061,120]